fUST/lending_fUST_20250106
["ID","MTS","AMOUNT","RATE_DAILY","PERIOD"]
[347864433,1736170239993,-275.239995,0.000191,2]
[347864435,1736170240003,-8579.45924867,0.000191,2]
[347864437,1736170240012,-8579.45924867,0.000191,2]
[347864439,1736170240021,-8579.45924867,0.000191,2]
[347864441,1736170240031,-8579.45924867,0.000191,2]
[347864443,1736170240041,-8579.45924867,0.000191,2]
[347864445,1736170240050,-8579.45924867,0.000191,2]
[347864447,1736170240059,-8579.45924867,0.000191,2]
[347864449,1736170240069,-8579.45924867,0.000191,2]
[347864451,1736170240078,-8579.45924867,0.000191,2]
[347864452,1736170240088,-8579.45924867,0.000191,2]
[347864453,1736170240097,-499.52460437,0.00019173,2]
[347864454,1736170240107,-500.52197667,0.00019173,2]
[347864455,1736170240116,-500.0,0.00019173,2]
[347864456,1736170240126,-168.19693388,0.00019173,2]
[347864457,1736170240136,-151.0,0.00019178,2]
[347864458,1736170240145,-498.8031993,0.00019178,2]
[347864459,1736170240155,-500.0,0.00019178,2]
[347864460,1736170240165,-500.0,0.00019178,2]
[347864461,1736170240174,-500.0,0.00019178,2]
[347864462,1736170240183,-500.0,0.00019178,2]
[347864463,1736170240193,-151.0,0.00019178,2]
[347864464,1736170240203,-500.0,0.00019178,2]
[347864465,1736170240212,-500.0,0.00019178,2]
[347864466,1736170240221,-500.0,0.00019178,2]
[347864467,1736170240231,-151.0,0.00019178,2]
[347864468,1736170240240,-151.0,0.00019178,2]
[347864469,1736170240249,-500.0,0.00019178,2]
[347864470,1736170240258,-151.281569,0.00019178,2]
[347864471,1736170240268,-151.281569,0.00019178,2]
[347864473,1736170240277,-500.0,0.00019178,2]
[347864475,1736170240287,-500.0,0.00019178,2]
[347864477,1736170240297,-322.423987,0.00019178,2]
[347864479,1736170240308,-322.423987,0.00019178,2]
[347864481,1736170240317,-322.423987,0.00019178,2]
[347864483,1736170240326,-322.423987,0.00019178,2]
[347864485,1736170240335,-500.0,0.00019178,2]
[347864487,1736170240346,-151.0,0.00019178,2]
[347864488,1736170240355,-151.0,0.00019178,2]
[347864501,1736170240463,-151.0,0.00019178,2]
[347864503,1736170240472,-151.0,0.00019178,2]
[347864505,1736170240481,-500.0,0.00019178,2]
[347864507,1736170240490,-151.0,0.00019178,2]
[347864509,1736170240500,-237.306866,0.00019178,2]
[347864511,1736170240509,-270.574801,0.00019178,2]
[347864513,1736170240519,-270.574801,0.00019178,2]
[347864515,1736170240528,-270.574801,0.00019178,2]
[347864517,1736170240537,-270.574801,0.00019178,2]
[347864519,1736170240547,-528.26951452,0.00019178,2]
[347864521,1736170240556,-151.0,0.00019178,2]
[347864523,1736170240565,-151.0,0.00019178,2]
[347864525,1736170240574,-158.48,0.00019178,2]
[347864527,1736170240584,-500.0,0.00019178,2]
[347864529,1736170240593,-500.0,0.00019178,2]
[347864531,1736170240602,-500.0,0.00019178,2]
[347864533,1736170240611,-151.0,0.00019178,2]
[347864535,1736170240623,-151.0,0.00019178,2]
[347864537,1736170240632,-500.0,0.00019178,2]
[347864539,1736170240642,-500.0,0.00019178,2]
[347864541,1736170240651,-500.0,0.00019178,2]
[347864542,1736170240660,-500.0,0.00019178,2]
[347864544,1736170240669,-151.0,0.00019178,2]
[347864546,1736170240678,-500.0,0.00019178,2]
[347864548,1736170240687,-500.0,0.00019178,2]
[347864549,1736170240696,-500.0,0.00019178,2]
[347864551,1736170240705,-500.0,0.00019178,2]
[347864553,1736170240714,-500.0,0.00019178,2]
[347864555,1736170240724,-500.0,0.00019178,2]
[347864556,1736170240733,-500.0,0.00019178,2]
[347864558,1736170240743,-396.02622332,0.00019178,2]
[347864559,1736170240752,-294.42373908,0.00019178,2]
[347864560,1736170240761,-500.0,0.00019178,2]
[347864562,1736170240773,-500.0,0.00019178,2]
[347864565,1736170240783,-500.0,0.00019178,2]
[347864566,1736170240792,-500.0,0.00019178,2]
[347864568,1736170240801,-500.0,0.00019178,2]
[347864570,1736170240810,-500.0,0.00019178,2]
[347864572,1736170240820,-500.0,0.00019178,2]
[347864574,1736170240830,-500.0,0.00019178,2]
[347864577,1736170240840,-1231.69,0.00019178,2]
[347864579,1736170240849,-500.0,0.00019178,2]
[347864580,1736170240858,-500.0,0.00019178,2]
[347864582,1736170240867,-500.0,0.00019178,2]
[347864585,1736170240878,-228.18,0.00019178,2]
[347864587,1736170240887,-3446.05,0.00019178,2]
[347864588,1736170240897,-500.0,0.00019178,2]
[347864590,1736170240906,-1120.07,0.00019178,2]
[347864593,1736170240915,-500.0,0.00019178,2]
[347864595,1736170240925,-1747.11,0.00019178,2]
[347864596,1736170240934,-500.0,0.00019178,2]
[347864598,1736170240944,-1185.99,0.00019178,2]
[347864600,1736170240953,-500.0,0.00019178,2]
[347864602,1736170240964,-500.0,0.00019178,2]
[347864605,1736170240973,-500.0,0.00019178,2]
[347864606,1736170240983,-500.0,0.00019178,2]
[347864609,1736170240992,-500.0,0.00019178,2]
[347864611,1736170241001,-500.0,0.00019178,2]
[347864613,1736170241011,-500.0,0.00019178,2]
[347864614,1736170241020,-500.0,0.00019178,2]
[347864617,1736170241030,-500.0,0.00019178,2]
[347864619,1736170241039,-500.0,0.00019178,2]
[347864621,1736170241048,-500.0,0.00019178,2]
[347864622,1736170241058,-500.0,0.00019178,2]
[347864623,1736170241066,-500.0,0.00019178,2]
[347864624,1736170241076,-833.92,0.00019178,2]
[347864625,1736170241085,-500.0,0.00019178,2]
[347864626,1736170241095,-500.0,0.00019178,2]
[347864627,1736170241104,-500.0,0.00019178,2]
[347864628,1736170241113,-500.0,0.00019178,2]
[347864629,1736170241123,-500.0,0.00019178,2]
[347864630,1736170241132,-500.0,0.00019178,2]
[347864631,1736170241142,-500.0,0.00019178,2]
[347864632,1736170241151,-829.04,0.00019178,2]
[347864633,1736170241160,-2489.56,0.00019178,2]
[347864634,1736170241169,-12250.23,0.00019178,2]
[347864635,1736170241179,-904.2,0.00019178,2]
[347864636,1736170241188,-500.0,0.00019178,2]
[347864637,1736170241198,-500.0,0.00019178,2]
[347864638,1736170241207,-500.0,0.00019178,2]
[347864639,1736170241217,-944.18,0.00019178,2]
[347864640,1736170241226,-500.0,0.00019178,2]
[347864641,1736170241235,-500.0,0.00019178,2]
[347864642,1736170241245,-500.0,0.00019178,2]
[347864643,1736170241254,-500.0,0.00019178,2]
[347864644,1736170241263,-500.0,0.00019178,2]
[347864645,1736170241273,-500.0,0.00019178,2]
[347864646,1736170241282,-500.0,0.00019178,2]
[347864647,1736170241291,-500.0,0.00019178,2]
[347864648,1736170241305,-500.0,0.00019178,2]
[347864649,1736170241314,-500.0,0.00019178,2]
[347864650,1736170241323,-500.0,0.00019178,2]
[347864651,1736170241332,-500.0,0.00019178,2]
[347864652,1736170241343,-500.0,0.00019178,2]
[347864653,1736170241351,-500.0,0.00019178,2]
[347864654,1736170241360,-500.0,0.00019178,2]
[347864655,1736170241370,-556.42,0.00019178,2]
[347864656,1736170241380,-500.0,0.00019178,2]
[347864657,1736170241390,-500.0,0.00019178,2]
[347864658,1736170241399,-162.638744,0.00019178,2]
[347864659,1736170241408,-151.0,0.00019196,2]
[347864660,1736170241417,-151.281569,0.00019196,2]
[347864661,1736170241427,-151.281569,0.00019196,2]
[347864662,1736170241436,-151.0,0.00019196,2]
[347864663,1736170241446,-151.0,0.00019196,2]
[347864664,1736170241455,-151.0,0.00019196,2]
[347864665,1736170241465,-151.602441,0.000192,2]
[347864666,1736170241474,-151.0,0.000192,2]
[347864667,1736170241498,-151.0,0.000192,2]
[347864668,1736170241507,-254.443136,0.000192,2]
[347864669,1736170241516,-254.443136,0.000192,2]
[347864670,1736170241526,-151.0,0.000192,2]
[347864671,1736170241538,-151.0,0.000192,2]
[347864672,1736170241548,-322.423987,0.000192,2]
[347864673,1736170241557,-322.423987,0.000192,2]
[347864674,1736170241567,-322.423987,0.000192,2]
[347864675,1736170241576,-322.423987,0.000192,2]
[347864676,1736170241585,-235.500057,0.000192,2]
[347864677,1736170241594,-151.0,0.000192,2]
[347864678,1736170241604,-151.0,0.000192,2]
[347864679,1736170241613,-270.574801,0.000192,2]
[347864680,1736170241623,-270.574801,0.000192,2]
[347864681,1736170241632,-270.574801,0.000192,2]
[347864682,1736170241642,-270.574801,0.000192,2]
[347864683,1736170241651,-151.0,0.000192,2]
[347864684,1736170241663,-151.0,0.000192,2]
[347864685,1736170241676,-150.0,0.00019225,2]
[347864686,1736170241688,-535.0,0.00019225,2]
[347864687,1736170241700,-2081.0,0.00019225,2]
[347864688,1736170241713,-2318.0,0.00019225,2]
[347864689,1736170241725,-394.0,0.00019225,2]
[347864690,1736170241735,-151.0,0.00019252,2]
[347864691,1736170241746,-270.574801,0.00019252,2]
[347864692,1736170241759,-270.574801,0.00019252,2]
[347864693,1736170241770,-151.0,0.00019252,2]
[347864694,1736170241782,-8579.45924867,0.00019314,2]
[347864695,1736170241793,-151.0,0.00019352,2]
[347864696,1736170241806,-151.0,0.00019352,2]
[347864697,1736170241817,-151.0,0.00019352,2]
[347864698,1736170241829,-151.0,0.00019352,2]
[347864699,1736170241841,-151.0,0.00019352,2]
[347864700,1736170241853,-151.0,0.00019352,2]
[347864701,1736170241865,-151.0,0.00019352,2]
[347864702,1736170241878,-151.281569,0.00019352,2]
[347864703,1736170241889,-151.281569,0.00019352,2]
[347864704,1736170241901,-322.423987,0.00019352,2]
[347864705,1736170241912,-322.423987,0.00019352,2]
[347864706,1736170241923,-151.0,0.00019352,2]
[347864707,1736170241935,-151.0,0.00019352,2]
[347864708,1736170241946,-151.0,0.00019352,2]
[347864709,1736170241958,-500.0,0.00019451,3]
[347864710,1736170241970,-500.0,0.00019451,3]
[347864711,1736170241982,-500.0,0.00019451,3]
[347864712,1736170241997,-455.67919524,0.00019451,3]
[347864713,1736170242014,-276.45544,0.00019452,2]
[347864714,1736170242025,-256.95411532,0.00019452,3]
[347864715,1736170242035,-500.0,0.00019452,3]
[347864716,1736170242044,-500.0,0.00019452,3]
[347864717,1736170242056,-594.51560932,0.00019452,3]
[347864718,1736170242067,-500.0,0.00019452,3]
[347864719,1736170242078,-151.0,0.00019452,2]
[347864720,1736170242089,-151.0,0.00019452,2]
[347864721,1736170242101,-500.0,0.00019452,3]
[347864722,1736170242112,-151.281569,0.00019452,2]
[347864723,1736170242124,-151.281569,0.00019452,2]
[347864724,1736170242134,-300.0,0.00019452,3]
[347864725,1736170242146,-322.423987,0.00019452,2]
[347864726,1736170242158,-322.423987,0.00019452,2]
[347864727,1736170242170,-500.0,0.00019452,3]
[347864728,1736170242182,-151.0,0.00019452,2]
[347864729,1736170242192,-500.0,0.00019452,3]
[347864730,1736170242205,-270.574801,0.00019452,2]
[347864731,1736170242215,-270.574801,0.00019452,2]
[347864732,1736170242226,-270.574801,0.00019452,2]
[347864733,1736170242242,-270.574801,0.00019452,2]
[347864734,1736170242252,-151.0,0.00019452,2]
[347864735,1736170242262,-500.0,0.00019452,3]
[347864736,1736170242274,-500.0,0.00019452,3]
[347864737,1736170242285,-500.0,0.00019452,3]
[347864738,1736170242299,-151.0,0.00019452,2]
[347864739,1736170242310,-151.0,0.00019452,2]
[347864740,1736170242326,-500.0,0.00019452,3]
[347864741,1736170242336,-500.0,0.00019452,3]
[347864742,1736170242348,-500.0,0.00019452,3]
[347864743,1736170242359,-500.0,0.00019452,3]
[347864744,1736170242371,-500.0,0.00019452,3]
[347864745,1736170242382,-500.0,0.00019452,3]
[347864746,1736170242394,-500.0,0.00019452,3]
[347864747,1736170242406,-500.0,0.00019452,3]
[347864748,1736170242417,-500.0,0.00019452,3]
[347864749,1736170242427,-209.55889495,0.00019452,3]
[347864750,1736170242437,-500.0,0.00019452,3]
[347864751,1736170242448,-1231.69,0.00019452,3]
[347864752,1736170242459,-500.0,0.00019452,3]
[347864753,1736170242469,-500.0,0.00019452,3]
[347864754,1736170242480,-150.08,0.00019452,3]
[347864755,1736170242496,-150.39434445,0.00019452,3]
[347864757,1736170242507,-150.08,0.00019452,3]
[347864759,1736170242518,-524.79450242,0.00019452,3]
[347864761,1736170242530,-3446.05,0.00019452,3]
[347864763,1736170242540,-1120.07,0.00019452,3]
[347864765,1736170242551,-1747.11,0.00019452,3]
[347864767,1736170242561,-500.0,0.00019452,3]
[347864770,1736170242571,-1185.99,0.00019452,3]
[347864773,1736170242582,-150.08,0.00019452,3]
[347864775,1736170242593,-500.0,0.00019452,3]
[347864777,1736170242603,-500.0,0.00019452,3]
[347864778,1736170242614,-500.0,0.00019452,3]
[347864779,1736170242624,-500.0,0.00019452,3]
[347864780,1736170242635,-500.0,0.00019452,3]
[347864781,1736170242646,-500.0,0.00019452,3]
[347864782,1736170242657,-500.0,0.00019452,3]
[347864783,1736170242668,-500.0,0.00019452,3]
[347864784,1736170242678,-500.0,0.00019452,3]
[347864785,1736170242689,-833.92,0.00019452,3]
[347864786,1736170242700,-500.0,0.00019452,3]
[347864787,1736170242710,-500.0,0.00019452,3]
[347864788,1736170242721,-500.0,0.00019452,3]
[347864789,1736170242733,-500.0,0.00019452,3]
[347864791,1736170242743,-829.04,0.00019452,3]
[347864793,1736170242754,-12250.23,0.00019452,3]
[347864795,1736170242764,-2489.56,0.00019452,3]
[347864797,1736170242775,-500.0,0.00019452,3]
[347864800,1736170242786,-904.2,0.00019452,3]
[347864802,1736170242796,-150.08,0.00019452,3]
[347864804,1736170242807,-150.08,0.00019452,2]
[347864806,1736170242818,-150.08,0.00019452,3]
[347864808,1736170242828,-500.0,0.00019452,3]
[347864810,1736170242839,-500.0,0.00019452,3]
[347864811,1736170242849,-500.0,0.00019452,3]
[347864813,1736170242861,-500.0,0.00019452,3]
[347864815,1736170242871,-944.18,0.00019452,3]
[347864817,1736170242882,-500.0,0.00019452,3]
[347864820,1736170242892,-569.41,0.00019452,3]
[347864822,1736170242903,-150.08,0.00019452,3]
[347864824,1736170242913,-500.0,0.00019452,3]
[347864826,1736170242924,-500.0,0.00019452,3]
[347864828,1736170242934,-150.08,0.00019452,2]
[347864830,1736170242945,-500.0,0.00019452,3]
[347864832,1736170242955,-150.42008958,0.00019452,3]
[347864835,1736170242965,-500.0,0.00019452,3]
[347864837,1736170242976,-150.08,0.00019452,2]
[347864839,1736170242987,-150.08,0.00019452,3]
[347864841,1736170242998,-500.0,0.00019452,3]
[347864843,1736170243009,-500.0,0.00019452,3]
[347864845,1736170243019,-500.0,0.00019452,3]
[347864862,1736170243157,-350.70509447,0.00019452,3]
[347864864,1736170243173,-500.0,0.00019452,3]
[347864866,1736170243183,-500.0,0.00019452,3]
[347864869,1736170243194,-500.0,0.00019452,3]
[347864871,1736170243205,-9767.7797134,0.000195,2]
[347864873,1736170243214,-151.281569,0.000195,2]
[347864875,1736170243223,-151.281569,0.000195,2]
[347864877,1736170243232,-322.423987,0.000195,2]
[347864879,1736170243243,-322.423987,0.000195,2]
[347864881,1736170243252,-151.0,0.000195,2]
[347864883,1736170243261,-151.0,0.000195,2]
[347864885,1736170243270,-255.006634,0.000195,2]
[347864887,1736170243279,-151.0,0.00019501,2]
[347864889,1736170243290,-600.0,0.00019501,2]
[347864891,1736170243301,-8579.45924867,0.00019555,2]
[347864893,1736170243310,-160.0,0.00019591,3]
[347864895,1736170243319,-500.0,0.00019618,2]
[347864897,1736170243328,-150.133,0.00019674,2]
[347864899,1736170243339,-150.0,0.00019674,2]
[347864901,1736170243348,-151.0,0.00019675,2]
[347864903,1736170243357,-151.0,0.00019675,2]
[347864905,1736170243368,-254.443136,0.00019675,2]
[347864907,1736170243378,-254.443136,0.00019675,2]
[347864908,1736170243387,-500.0,0.00019686,2]
[347864910,1736170243397,-600.0,0.00019705,2]
[347864912,1736170243406,-849.85799782,0.00019726,3]
[347864914,1736170243415,-150.08,0.00019726,3]
[347864916,1736170243424,-156.68203953,0.00019726,3]
[347864918,1736170243433,-150.08,0.00019726,3]
[347864920,1736170243443,-500.0,0.00019726,3]
[347864922,1736170243452,-150.08,0.00019726,3]
[347864924,1736170243461,-150.08,0.00019726,3]
[347864926,1736170243470,-500.0,0.00019726,3]
[347864928,1736170243480,-150.08,0.00019726,3]
[347864930,1736170243490,-150.08,0.00019726,2]
[347864932,1736170243500,-500.0,0.00019726,3]
[347864934,1736170243509,-150.08,0.00019726,3]
[347864936,1736170243518,-152.175992,0.00019726,2]
[347864938,1736170243528,-151.0,0.00019726,2]
[347864940,1736170243537,-151.0,0.00019726,2]
[347864942,1736170243547,-151.0,0.00019726,2]
[347864944,1736170243556,-151.0,0.00019726,2]
[347864946,1736170243565,-180.430181,0.00019726,2]
[347864948,1736170243575,-151.281569,0.00019726,2]
[347864950,1736170243584,-151.281569,0.00019726,2]
[347864952,1736170243593,-322.423987,0.00019726,2]
[347864954,1736170243602,-322.423984,0.00019726,2]
[347864956,1736170243611,-151.0,0.00019726,2]
[347864958,1736170243620,-151.0,0.00019726,2]
[347864960,1736170243629,-500.0,0.00019726,3]
[347864962,1736170243639,-270.574801,0.00019726,2]
[347864964,1736170243648,-270.574793,0.00019726,2]
[347864966,1736170243657,-205.331578,0.00019726,2]
[347864968,1736170243666,-500.0,0.00019726,3]
[347864970,1736170243676,-500.0,0.00019726,3]
[347864972,1736170243685,-500.0,0.00019726,3]
[347864974,1736170243694,-151.0,0.00019726,2]
[347864976,1736170243703,-500.0,0.00019726,3]
[347864978,1736170243712,-500.0,0.00019726,3]
[347864980,1736170243721,-408.53,0.00019726,3]
[347864982,1736170243730,-500.0,0.00019726,3]
[347864984,1736170243740,-487.31,0.00019726,3]
[347864986,1736170243749,-500.0,0.00019726,3]
[347864988,1736170243759,-500.0,0.00019726,3]
[347864990,1736170243768,-500.0,0.00019726,3]
[347864992,1736170243777,-500.0,0.00019726,3]
[347864994,1736170243786,-1231.69,0.00019726,3]
[347864996,1736170243796,-3446.05,0.00019726,3]
[347864998,1736170243805,-1120.07,0.00019726,3]
[347865000,1736170243814,-1747.11,0.00019726,3]
[347865002,1736170243823,-581.81,0.00019726,3]
[347865004,1736170243832,-1185.99,0.00019726,3]
[347865006,1736170243841,-500.0,0.00019726,3]
[347865008,1736170243851,-500.0,0.00019726,3]
[347865010,1736170243860,-500.0,0.00019726,3]
[347865012,1736170243869,-500.0,0.00019726,3]
[347865014,1736170243879,-500.0,0.00019726,3]
[347865016,1736170243888,-166.78,0.00019726,3]
[347865018,1736170243898,-833.92,0.00019726,3]
[347865020,1736170243907,-500.0,0.00019726,3]
[347865022,1736170243916,-426.07517084,0.00019726,3]
[347865024,1736170243925,-500.0,0.00019726,3]
[347865026,1736170243935,-500.0,0.00019726,3]
[347865028,1736170243944,-829.04,0.00019726,3]
[347865030,1736170243953,-12250.23,0.00019726,3]
[347865032,1736170243962,-904.2,0.00019726,3]
[347865034,1736170243971,-2489.56,0.00019726,3]
[347865036,1736170243980,-500.0,0.00019726,3]
[347865038,1736170243992,-500.0,0.00019726,3]
[347865040,1736170244003,-944.18,0.00019726,3]
[347865042,1736170244012,-500.0,0.00019726,3]
[347865044,1736170244022,-215.07304471,0.00019726,3]
[347865046,1736170244031,-500.0,0.00019726,3]
[347865048,1736170244040,-500.0,0.00019726,3]
[347865050,1736170244050,-500.0,0.00019726,3]
[347865052,1736170244059,-500.0,0.00019726,3]
[347865054,1736170244070,-500.0,0.00019726,3]
[347865056,1736170244079,-500.0,0.00019726,3]
[347865058,1736170244088,-500.0,0.00019726,3]
[347865060,1736170244097,-500.0,0.00019726,3]
[347865062,1736170244107,-8579.45924867,0.00019797,2]
[347865064,1736170244116,-12158.49,0.000198,2]
[347865066,1736170244125,-5532.56,0.000198,2]
[347865068,1736170244134,-10081.67,0.000198,2]
[347865070,1736170244143,-202.312464,0.000198,2]
[347865072,1736170244152,-151.0,0.000198,2]
[347865074,1736170244163,-151.0,0.000198,2]
[347865076,1736170244172,-151.0,0.000198,2]
[347865078,1736170244181,-254.443136,0.000198,2]
[347865080,1736170244191,-254.443136,0.000198,2]
[347865082,1736170244200,-151.281569,0.000198,2]
[347865084,1736170244209,-151.281569,0.000198,2]
[347865086,1736170244219,-151.0,0.000198,2]
[347865088,1736170244228,-151.0,0.000198,2]
[347865090,1736170244237,-500.0,0.00019833,2]
[347865092,1736170244247,-500.0,0.00019855,2]
[347865094,1736170244256,-1143.65321259,0.00019908,2]
[347865096,1736170244265,-823.0,0.00019983,2]
[347865098,1736170244275,-150.76006384,0.0002,3]
[347865100,1736170244283,-153.39453872,0.0002,3]
[347865102,1736170244292,-710.34215165,0.0002,3]
[347865104,1736170244305,-152.48873447,0.0002,3]
[347865106,1736170244314,-150.08,0.0002,3]
[347865108,1736170244323,-500.0,0.0002,3]
[347865110,1736170244332,-150.08,0.0002,3]
[347865112,1736170244342,-153.58879046,0.0002,2]
[347865114,1736170244351,-500.0,0.0002,3]
[347865116,1736170244361,-200.69387485,0.0002,3]
[347865118,1736170244370,-50000.0,0.0002,5]
[347865120,1736170244382,-2900.0,0.0002,2]
[347865122,1736170244392,-151.0,0.0002,2]
[347865124,1736170244401,-151.0,0.0002,2]
[347865126,1736170244411,-151.0,0.0002,2]
[347865128,1736170244420,-254.443136,0.0002,2]
[347865130,1736170244429,-254.443136,0.0002,2]
[347865132,1736170244439,-4506.0,0.0002,2]
[347865134,1736170244448,-151.0,0.0002,2]
[347865136,1736170244457,-151.0,0.0002,2]
[347865138,1736170244466,-151.0,0.0002,2]
[347865140,1736170244476,-151.0,0.0002,2]
[347865142,1736170244486,-151.0,0.0002,2]
[347865144,1736170244495,-151.0,0.0002,2]
[347865146,1736170244504,-151.281569,0.0002,2]
[347865148,1736170244513,-151.281569,0.0002,2]
[347865150,1736170244522,-151.281569,0.0002,2]
[347865152,1736170244531,-151.281569,0.0002,2]
[347865154,1736170244540,-500.0,0.0002,3]
[347865156,1736170244550,-500.0,0.0002,3]
[347865158,1736170244559,-600.0,0.0002,3]
[347865160,1736170244568,-500.0,0.0002,3]
[347865162,1736170244577,-500.0,0.0002,3]
[347865164,1736170244586,-151.0,0.0002,2]
[347865166,1736170244595,-151.0,0.0002,2]
[347865168,1736170244605,-500.0,0.0002,3]
[347865170,1736170244614,-500.0,0.0002,3]
[347865172,1736170244623,-1231.69,0.0002,3]
[347865174,1736170244632,-3446.05,0.0002,3]
[347865176,1736170244642,-1120.07,0.0002,3]
[347865178,1736170244651,-1747.11,0.0002,3]
[347865180,1736170244661,-1185.99,0.0002,3]
[347865182,1736170244670,-500.0,0.0002,3]
[347865184,1736170244679,-500.0,0.0002,3]
[347865186,1736170244688,-500.0,0.0002,3]
[347865188,1736170244697,-500.0,0.0002,3]
[347865190,1736170244707,-500.0,0.0002,3]
[347865192,1736170244716,-833.92,0.0002,3]
[347865194,1736170244725,-500.0,0.0002,3]
[347865196,1736170244735,-500.0,0.0002,3]
[347865198,1736170244747,-829.04,0.0002,3]
[347865200,1736170244757,-12250.23,0.0002,3]
[347865202,1736170244767,-904.2,0.0002,3]
[347865204,1736170244776,-2489.56,0.0002,3]
[347865206,1736170244786,-500.0,0.0002,3]
[347865208,1736170244794,-500.0,0.0002,3]
[347865210,1736170244803,-944.18,0.0002,3]
[347865212,1736170244813,-500.0,0.0002,3]
[347865214,1736170244822,-500.0,0.0002,3]
[347865216,1736170244831,-500.0,0.0002,3]
[347865218,1736170244841,-500.0,0.0002,3]
[347865220,1736170244851,-500.0,0.0002,3]
[347865222,1736170244860,-294.10570044,0.0002,3]
[347865224,1736170244869,-500.0,0.0002,3]
[347865226,1736170244878,-500.0,0.0002,3]
[347865228,1736170244888,-500.0,0.0002,3]
[347865230,1736170244897,-8579.45924867,0.00020038,2]
[347865232,1736170244907,-160.0,0.00020041,4]
[347865234,1736170244916,-4606.22473939,0.000201,2]
[347865236,1736170244926,-4606.22473937,0.000201,2]
[347865238,1736170244935,-4606.22473937,0.000201,2]
[347865240,1736170244944,-4606.22473937,0.000201,2]
[347865242,1736170244953,-151.281569,0.000201,2]
[347865244,1736170244962,-151.281578,0.000201,2]
[347865246,1736170244971,-151.0,0.000201,2]
[347865248,1736170244981,-6980.0,0.000202,2]
[347865250,1736170244991,-151.0,0.000202,3]
[347865252,1736170245000,-151.0,0.00020273,2]
[347865254,1736170245009,-151.0,0.00020273,2]
[347865256,1736170245018,-151.0,0.00020273,2]
[347865258,1736170245027,-500.0,0.00020273,3]
[347865260,1736170245036,-500.0,0.00020273,3]
[347865262,1736170245046,-500.0,0.00020273,3]
[347865264,1736170245055,-500.0,0.00020273,3]
[347865266,1736170245064,-332.62,0.00020273,3]
[347865268,1736170245074,-1231.69,0.00020273,3]
[347865270,1736170245083,-3446.05,0.00020273,3]
[347865272,1736170245093,-1120.07,0.00020273,3]
[347865274,1736170245102,-1747.11,0.00020273,3]
[347865276,1736170245111,-1185.99,0.00020273,3]
[347865278,1736170245120,-500.0,0.00020273,3]
[347865280,1736170245130,-500.0,0.00020273,3]
[347865282,1736170245139,-500.0,0.00020273,3]
[347865284,1736170245149,-833.92,0.00020273,3]
[347865286,1736170245158,-500.0,0.00020273,3]
[347865288,1736170245167,-500.0,0.00020273,3]
[347865290,1736170245177,-829.04,0.00020273,3]